{"text_format":"1","workbook":"xlsx","n_sheets":8,"sheets":["Disclaimer","CORTEC","Configurator","Documents","Master Text","BOM","Database","Date Drivers"],"not_rendered":{"charts":0,"images":0,"macros":0,"external_links":0,"defined_names":3,"comments":0,"pivot_tables":0},"unopened":[],"bounds":{"document_bytes":16777216,"sheet_cells":100000,"rows_first":2000,"rows_last":500,"rows_between":2000,"halvings":0,"cell_chars":16384,"cell_head_chars":4096},"cells_cut":0,"cells_raw":0,"read":"whole","date_system":"1900"}

{"sheet":"Disclaimer","index":0,"n_rows":6,"n_cols":2,"rows_kept":6,"cut":false,"hidden":false,"merged":[[2,1,2,9],[5,1,7,9],[3,1,4,9]]}
[]
[]
[null,"Our policy is one of continuous development. Accordingly the design of our products may change at any time. "]
[null,"Whilst every effort is made to produce up to date literature, this document should only be regarded as a guide and is intended for information purposes only."]
[]
[null,"Its contents do not constitute an offer for sale or advice on the application of any product referred to in it. We cannot be held responsible for any reliance on any decisions taken on its contents without specific advice."]

{"sheet":"CORTEC","index":1,"n_rows":52,"n_cols":16,"rows_kept":52,"cut":false,"hidden":false,"merged":[[2,1,2,2]]}
[null,"Ordering information"]
[]
[null,"Variants Order No.     ",null,null,null,"P847",null,null,null,null,null,null,null,"**"]
[null,"Model"]
[null,"Phasor Measurement Unit"]
[]
[null,"Nominal auxiliary voltage"]
[1,"24-54 Vdc",null,null,null,null,7]
[2,"48-125 Vdc (40-100 Vac)",null,null,null,null,8]
[3,"110-250 Vdc (100-240 Vac)",null,null,null,null,9]
[]
[null,"In/Vn rating "]
[1,"In = 1 A/5 A : Vn = 100 - 120 Vac, 4 CT & 3 VT (60TE)",null,null,null,null,null,1]
[null,"In = 1 A/5 A : Vn = 100 - 120 Vac, 12CT & 3VT (80TE)",null,null,null,null,null,2]
[]
[null,"Hardware options"]
["B","Ethernet (100Mbps) plus IRIG-B (Un-modulated)",null,null,null,null,null,null,"B"]
[null,"Redundant Ethernet Self-Healing Ring + Un-modulated IRIG-B",null,null,null,null,null,null,"H"]
[null,"Redundant Ethernet Rapid Spanning Tree Protocol + Un-modulated IRIG-B",null,null,null,null,null,null,"K"]
[null,"Redundant Ethernet Dual Homing Star + Un-modulated IRIG-B",null,null,null,null,null,null,"M"]
[]
[null,"Product Options"]
["A","8 Inputs & 8 Outputs + Backup Protection (60TE) 50/60 Hz",null,null,null,null,null,null,null,"A"]
[null,"16 Inputs & 8 Outputs (80TE) 50/60 Hz ",null,null,null,null,null,null,null,"B"]
[null,"24 Inputs & 24 Outputs (80TE) 50/60 Hz",null,null,null,null,null,null,null,"C"]
[]
[null,"Protocol options"]
[null,"K-Bus",null,null,null,null,null,null,null,null,1]
[6,"IEC61850 + Courier via rear RS485 port",null,null,null,null,null,null,null,null,6]
[null,"DNP3 over Ethernet with Courier rear port K-Bus/RS485 protocol",null,null,null,null,null,null,null,null,8]
[]
[null,"Mounting"]
["M","Flush/Panel Mounting with Harsh Environment Coating",null,null,null,null,null,null,null,null,null,"M"]
[null,"19\" Rack Mounting with Harsh Environmental Coating (80TE only)",null,null,null,null,null,null,null,null,null,"N"]
[null,"Flush/panel mounting with harsh environment coating",null,null,null,null,null,null,null,null,null,"P"]
[null,"19\" Rack mounting with harsh environmental coating (80TE only)",null,null,null,null,null,null,null,null,null,"Q"]
[]
[null,"Language"]
[0,"English, French, German, Spanish",null,null,null,null,null,null,null,null,null,null,0]
[4,"English, French, German, Italian (Not yet available!)",null,null,null,null,null,null,null,null,null,null,4]
[4,"English, French, German, Russian ",null,null,null,null,null,null,null,null,null,null,5]
[4,"Chinese, English or French via HMI, with English or French only via Communications port ",null,null,null,null,null,null,null,null,null,null,"C"]
[]
[null,"Software version"]
[null,"Date and application dependant",null,null,null,null,null,null,null,null,null,null,null,"**"]
[]
[null,"Customer specific options"]
[0,"Standard version",null,null,null,null,null,null,null,null,null,null,null,null,0]
[1,"Customer version",null,null,null,null,null,null,null,null,null,null,null,null,"A"]
[]
[null,"Hardware version"]
[null,"K = XCPU2  ",null,null,null,null,null,null,null,null,null,null,null,null,null,"K"]

{"sheet":"Configurator","index":2,"n_rows":25,"n_cols":13,"rows_kept":25,"cut":false,"hidden":false,"merged":[[2,1,2,2],[1,1,1,2],[4,1,4,2],[6,1,6,2],[20,1,20,2],[24,1,24,2],[8,1,8,2],[10,1,10,2],[13,1,13,2],[15,1,15,2],[17,1,17,2],[19,1,19,2],[22,1,22,2]]}
[]
["Digit #","1 - 4",null,"5","6","7","8","9","10","11","12-13","14","15"]
["P847 Phasor Measurement Unit","P847",null,{"$f":"$B$5","v":7},{"$f":"$B$7","v":2},{"$f":"$B$9","v":"B"},{"$f":"B11","v":"B"},{"$f":"$B$14","v":6},{"$f":"$B$16","v":"M"},{"$f":"$B$18","v":"0"},{"$f":"$B$20","v":"**"},{"$f":"$B$23","v":0},{"$f":"$B$25","v":"K"}]
["Vx auxiliary rating"]
[null,{"$f":"VLOOKUP(Database!$B$2,Database!$A$3:$C$5,3)","v":7}]
["In/Vn rating"]
[null,{"$f":"VLOOKUP(Database!$B$6,Database!$A$7:$C$8,3)","v":2}]
["Hardware options"]
[null,{"$f":"VLOOKUP(Database!$B$9,Database!$A$10:$C$20,3)","v":"B"}]
["Product options"]
[null,{"$f":"VLOOKUP(Database!$B$31,Database!$A$32:$C$34,3)","v":"B"}]
[{"$f":"VLOOKUP(Database!$B$31,Database!$A$32:$E$34,5,FALSE)","v":"Note: 50 Hz Only"}]
["Protocol options"]
[null,{"$f":"VLOOKUP(Database!$B$43,Database!$A$44:$C$48,3)","v":6}]
["Mounting"]
[null,{"$f":"VLOOKUP(Database!$B$50,Database!$A$51:$C$54,3)","v":"M"}]
["Language"]
[null,{"$f":"VLOOKUP(Database!$B$56,Database!$A$57:$C$59,3)","v":"0"}]
["Software version"]
[null,{"$f":"VLOOKUP(Database!$B$62,Database!$A$63:$C$65,3)","v":"**"}]
["Options available are derived from the latest version available with the specified hardware version ( i.e. using this date)",{"$f":"VLOOKUP(B20,Database!$A$91:$B$94,2)","v":"2010-09-24"}]
["Customer Specific Options"]
["Standard Version",{"$f":"VLOOKUP(Database!$B$67,Database!$A$68:$C$69,3)","v":0}]
["Hardware version"]
[null,{"$f":"VLOOKUP(Database!$B$73,Database!$A$74:$C$75,3)","v":"K"}]

{"sheet":"Documents","index":3,"n_rows":6,"n_cols":3,"rows_kept":6,"cut":false,"hidden":false,"merged":[]}
[{"$f":"CONCATENATE(Configurator!B3,Configurator!D3,Configurator!E3,Configurator!F3,Configurator!G3,Configurator!H3,Configurator!I3,Configurator!J3,Configurator!K3,Configurator!L3,Configurator!M3)","v":"P84772BB6M0**0K"}]
[]
["External Connection Diagram",":",{"$f":"VLOOKUP(Database!$B$31,Database!$A$32:$D$34,4)","v":"10P84702 Sheet 1"}]
["External Connection Diagram: Comms options",":","10Px4001-1"]
["Outline Diagram",":",{"$f":"HLOOKUP(Database!$B$31,Database!$F$20:$G$55,36)","v":"GN0086"}]
["Test Instruction",":","Z7Px40"]

{"sheet":"Master Text","index":4,"n_rows":43,"n_cols":3,"rows_kept":43,"cut":false,"hidden":false,"merged":[]}
[{"$f":"CONCATENATE(Configurator!B3,Configurator!D3,Configurator!E3,Configurator!F3,Configurator!G3,Configurator!H3,Configurator!I3,Configurator!J3,Configurator!K3,Configurator!L3,Configurator!M3)","v":"P84772BB6M0**0K"}]
["Version :"]
["P847 Phasor Measurement Unit"]
["Vx auxiliary rating :"]
[{"$f":"VLOOKUP(Database!$B$2,Database!$A$3:$C$5,2)","v":"24-54 Vdc"}]
["In/Vn rating :"]
[{"$f":"VLOOKUP(Database!$B$6,Database!$A$7:$C$8,2,FALSE)","v":"In = 1 A/5 A : Vn = 100 - 120 Vac, 12CT & 3VT (80TE)"}]
["Hardware options :"]
[{"$f":"VLOOKUP(Database!$B$9,Database!$A$10:$C$20,2)","v":"Ethernet (100Mbps) plus IRIG-B (De-modulated)"}]
["Product options : "]
[{"$f":"VLOOKUP(Database!$B$31,Database!$A$32:$B$41,2)","v":"16 Inputs & 8 Outputs (80TE) 50/60 Hz "}]
["Protocol options :"]
[{"$f":"VLOOKUP(Database!$B$43,Database!$A$44:$C$48,2)","v":"IEC61850 + Courier via rear RS485 port"}]
["Mounting :"]
[{"$f":"VLOOKUP(Database!$B$50,Database!$A$51:$B$54,2)","v":"Flush/Panel Mounting with Harsh Environment Coating"}]
["Language :"]
[{"$f":"VLOOKUP(Database!$B$56,Database!$A$57:$C$62,2)","v":"English, French, German, Spanish"}]
["Customer specific options ;"]
[{"$f":"VLOOKUP(Database!$B$67,Database!$A$68:$B$69,2)","v":"Standard Version"}]
["Software Version ;"]
[{"$f":"Configurator!K3","v":"**"}]
[]
[]
["Issue :"]
["Version :","A","Original - 08/08/08"]
[null,"B","CORTEC & Date Drivers amended, Protocol/Communications Option '8' was \"DNP3.0 over Ethernet\" only - 23/09/08"]
[null,"C","Models 'B' & 'C' & '70' Software released by CID BKIR-89PKDW - 12/10/2010"]
[null,"D","Minor BOM corrections 18/10/2010"]
[null,"E","Release of Harsh Environment coating option - see CID RPRI-8CYG5J - 19/02/2011"]
[null,"F","Note added for 50Hz applications - see CID LZOU-8FABKR - 30/03/2011"]
[null,"G","'71' software released by CID LZOU-8KLKWN - 17/08/2011"]
[null,"H","CPU3 updates, see CID NROB-8MC9F 08/10/2011"]
[null,"I","Product specific versions B & C were described as for \"50 Hz applications\" only, see CID BKIR-8RQEB6 - 23/02/2012"]
[null,"J","References to 'De-modulated IRIG-B' replaced with 'Un-modulated IRIG-B' - 12/04/2011"]
[null,"K","'72' software released by CID HSHA-8UU9DA - 7/06/2012"]
[null,"L","Vx rating changed in line with CID IMAY-8YGH8B - 10/12/2012"]
[null,"M","As HEC is now standard for all products, HEC mounting options are withdrawn and \"with Harsh Environmental Coating\" added to standard mounting options descriptions, see CID MBAM-934JCF - 09/01/2013"]
[null,"N","Px40 Agile new branding, new PSU & Opto roll out, See CID YLII-9CAHT3 - 15/10/2013"]
[null,"O","PSU descriptions reverted - 07/12/2013"]
[null,"P","Withdrawal of '60' Software & 60TE Product Specific model 'A' - see CID MBAM-9MVC56 - 25/03/2015"]
[null,"Q","Correction of lookup error on software versions - 08/07/2015"]
[null,"R","72' Software withdrawn 28/12/2018 by CID005446, GE Publication no GER-4820"]
[null,"S","70' and  '71' Software withdrawn 15/07/2022 CID007353, GE Publication no GER-4912"]

{"sheet":"BOM","index":5,"n_rows":50,"n_cols":21,"rows_kept":50,"cut":false,"hidden":false,"merged":[[0,1,0,12]]}
["PCS MATERIAL MASTER","Requirements Key(s) / # of digit in model number",null,null,null,null,null,null,null,null,null,null,null,"Requirements Keys","Attribute Keys","NUMBER","DESCRIPTION","Ref","Qty. Required","Ref","Qty. Required"]
[{"$f":"'Master Text'!A1","v":"P84772BB6M0**0K"},4,5,6,7,8,9,10,"11","14",15]
[null,null,null,null,null,{"$f":"MID($A$2,8,1)","v":"B"},null,null,null,null,null,null,null,{"$f":"F3","v":"B"},"A","GN0524001","Final Assembly P847"," ",1,{"$f":"IF($N3=$O3,$R3,\"\")","v":""},{"$f":"IF(AND($N3<>\"\",$N3=$O3),$S3,\"\")","v":""}]
[null,null,null,null,null,"B",null,{"$f":"MID($A$2,10,1)","v":"M"},null,null,null,null,null,{"$f":"CONCATENATE(F4,H4)","v":"BM"},"BM","GN0535001","Final Assembly P847"," ",1," ",{"$f":"IF(AND($N4<>\"\",$N4=$O4),$S4,\"\")","v":1}]
[null,null,null,null,null,"B",null,{"$f":"MID($A$2,10,1)","v":"M"},null,null,null,null,null,{"$f":"CONCATENATE(F5,H5)","v":"BM"},"CM","GN0535001","Final Assembly P847"," ",1,"",{"$f":"IF(AND($N5<>\"\",$N5=$O5),$S5,\"\")","v":""}]
[null,null,null,null,null,"B",null,{"$f":"MID($A$2,10,1)","v":"M"},null,null,null,null,null,{"$f":"CONCATENATE(F6,H6)","v":"BM"},"BN","GN0535002","Final Assembly P847"," ",1,"",{"$f":"IF(AND($N6<>\"\",$N6=$O6),$S6,\"\")","v":""}]
[null,null,null,null,null,"B",null,{"$f":"MID($A$2,10,1)","v":"M"},null,null,null,null,null,{"$f":"CONCATENATE(F7,H7)","v":"BM"},"CN","GN0535002","Final Assembly P847"," ",1,"",{"$f":"IF(AND($N7<>\"\",$N7=$O7),$S7,\"\")","v":""}]
[null,null,null,null,null,"B",null,null,{"$f":"MID($A$2,11,1)","v":"0"},null,null,null,null,{"$f":"CONCATENATE(F8,I8)","v":"B0"},"A0","GN0277005","F/ASSY USER INTERFACE (60TE) ","Ref 9",1,"",{"$f":"IF($N8=$O8,$S8,\"\")","v":""}]
[null,null,null,null,null,{"$f":"MID($A$2,8,1)","v":"B"},null,null,"0",null,null,null,null,"B0","A5","GN0277005","F/ASSY USER INTERFACE (60TE) ","Ref 9",1,"",""]
[null,null,null,null,null,"B",null,null,"0",null,null,null,null,"B0","AC","GN0277006","F/ASSY CHINESE USER INTERFACE (60TE)","Ref 9",1,"",""]
[null,null,null,null,null,{"$f":"MID($A$2,8,1)","v":"B"},null,null,"0",null,null,null,null,"B0","B0","GN0341005","F/ASSY USER INTERFACE (80TE) ","Ref 11",1,"Ref 11",1]
[null,null,null,null,null,"B",null,null,"0",null,null,null,null,"B0","B5","GN0341005","F/ASSY USER INTERFACE (80TE) ","Ref 11",1,"",""]
[null,null,null,null,null,"B",null,null,"0",null,null,null,null,"B0","BC","GN0341006","F/ASSY CHINESE USER INTERFACE (80TE)","Ref 11",1,"",""]
[null,null,null,null,null,{"$f":"MID($A$2,8,1)","v":"B"},null,null,"0",null,null,null,null,"B0","C0","GN0341005","F/ASSY USER INTERFACE (80TE) ","Ref 11",1,"",""]
[null,null,null,null,null,"B",null,null,"0",null,null,null,null,"B0","C5","GN0341005","F/ASSY USER INTERFACE (80TE) ","Ref 11",1,"",""]
[null,null,null,null,null,"B",null,null,"0",null,null,null,null,"B0","CC","GN0341006","F/ASSY CHINESE USER INTERFACE (80TE)","Ref 11",1,"",""]
[null,null,{"$f":"MID($A$2,5,1)","v":"7"},null,null,null,null,null,null,null,null,null,null,{"$f":"C17","v":"7"},"1","ZN0021001","Power Supply","Ref 4",1,"",""]
[null,null,"7",null,null,null,null,null,null,null,null,null,null,"7","2","ZN0021002","Power Supply","Ref 4",1,"",""]
[null,null,"7",null,null,null,null,null,null,null,null,null,null,"7","3","ZN0021003","Power Supply","Ref 4",1,"",""]
[null,null,"7",null,null,null,null,null,null,null,null,null,null,"7","7","ZN0021201","Power Supply","Ref 4",1,"Ref 4",1]
[null,null,"7",null,null,null,null,null,null,null,null,null,null,"7","8","ZN0021202","Power Supply","Ref 4",1,"",""]
[null,null,"7",null,null,null,null,null,null,null,null,null,null,"7","9","ZN0021203","Power Supply","Ref 4",1,"",""]
[null,null,null,null,{"$f":"MID($A$2,7,1)","v":"B"},{"$f":"MID($A$2,8,1)","v":"B"},null,null,null,null,null,null,null,{"$f":"CONCATENATE(E23,F23)","v":"BB"},"BB","ZN0049003","PCB ASSY - Px40 100Mhz Ethernet bd- A/01","Ref 6",1,{"$f":"IF($N23=$O23,$R23,\"\")","v":"Ref 6"},{"$f":"IF($N23=$O23,$S23,\"\")","v":1}]
[null,null,null,null,"B","B",null,null,null,null,null,null,null,"BB","HB","ZN0071002","PCB  Red. Ethernet (SHR) non Mod IRIG-B","Ref 5",1,"",""]
[null,null,null,null,"B","B",null,null,null,null,null,null,null,"BB","KB","ZN0071006","PCB  Red. Ethernet (RSTP) Non Mod IRIG","Ref 5",1,"",""]
[null,null,null,null,"B","B",null,null,null,null,null,null,null,"BB","MB","ZN0071008","PCB  Red. Ethernet (DHS) Non Mod IRIG","Ref 5",1,"",""]
[null,null,null,null,"B","B",null,null,null,null,null,null,null,"BB","BC","ZN0049003","PCB ASSY - Px40 100Mhz Ethernet bd- A/01","Ref 6",1,"",""]
[null,null,null,null,"B","B",null,null,null,null,null,null,null,"BB","HC","ZN0071002","PCB  Red. Ethernet (SHR) non Mod IRIG-B","Ref 5",1,"",""]
[null,null,null,null,"B","B",null,null,null,null,null,null,null,"BB","KC","ZN0071006","PCB  Red. Ethernet (RSTP) Non Mod IRIG","Ref 5",1,"",""]
[null,null,null,null,"B","B",null,null,null,null,null,null,null,"BB","MC","ZN0071008","PCB  Red. Ethernet (DHS) Non Mod IRIG","Ref 5",1,"",""]
[null,null,null,null,null,null,null,null,null,null,null,null,null," "," ","ZB9800801","VxWorks Licence","Ref 13",1,"Ref 13",1]
[null,null,null,null,null,null,null,null,null,null,null,null,null," "," ","ZB9800802","MMS-Ease Lite licence","Ref 14",1,"Ref 14",1]
[null,null,null,null,null,{"$f":"MID($A$2,8,1)","v":"B"},null,null,null,null,null,null,null,{"$f":"F33","v":"B"},"B","ZN0019001","Output PCB","Ref 3 Slot 2 PL2:1",1,"Ref 3 Slot 2 PL2:1",{"$f":"IF(AND($N33<>\"\",$N33=$O33),$S33,\"\")","v":1}]
[null,null,null,null,null,"B",null,null,null,null,null,null,null,"B","C","ZN0019002","Output PCB","Ref 3 Slot 2 PL2:1",1,"",""]
[null,null,null,null,null,"B",null,null,null,null,null,null,null,"B","C","ZN0019003","Output PCB","Ref 3 Slot 3 PL2:2",1,"",""]
[null,null,null,null,null,"B",null,null,null,null,null,null,null,"B","C","ZN0019004","Output PCB","Ref 3 Slot 4 PL2:3",1,"",""]
[null,null,null,null,null,"B",null,null,null,null,null,null,null,"B","C","ZN0017012","Input Opto Digital PCB (Dual Optos)","Ref 2 Slot 5 PL2:2",1,"",""]
[null,null,null,null,null,"B",null,null,null,null,null,null,null,"B","B","ZB9031759","Jumper Link","Ref 36",2,{"$f":"IF($N38=$O38,$R38,\"\")","v":"Ref 36"},2]
[null,null,null,null,null,"B",null,null,null,null,null,null,null,"B","C","ZB9031759","Jumper Link","Ref 36",5,"",""]
[null,null,null,null,null,"B",null,null,null,null,null,null,null,"B","B","ZA0005060","M4 Terminals for MIDOS & MiCOM 20 off","Ref 32",6,"Ref 32",6]
[null,null,null,null,null,"B",null,null,null,null,null,null,null,"B","C","ZA0005060","M4 Terminals for MIDOS & MiCOM 20 off","Ref 32",9,"",""]
[null,null,null,null,null,"B",null,null,null,null,null,null,null,"B","B","GN2038001","Blanking plate","Ref 28",4,"Ref 28",4]
[null,null,null,null,null,"B",null,null,null,null,null,null,null,"B","C","GN2038001","Blanking plate","Ref 28",1,"",""]
[null,null,null,null,null,null,null,null,null,null,null,null,null," "," ","ZB4018215","Self-tapping Screw No6 x 1/4\"","Ref 18",4,{"$f":"IF($N44=$O44,$R44,\"\")","v":"Ref 18"},{"$f":"IF($N44=$O44,$S44,\"\")","v":4}]
[null,null,null,null,null,null,null,null,null,null,null,null,null," "," ","ZB4018110","Self-tapping Screw No4 x 1/4\"","Ref 19",12,{"$f":"IF($N45=$O45,$R45,\"\")","v":"Ref 19"},{"$f":"IF($N45=$O45,$S45,\"\")","v":12}]
[null,null,null,null,null,null,null,null,null,null,null,null,null," "," "," "," "," "," "," ",1]
[null,null,null,null,null,null,null,null,null,null,null,null,null,null,null,null,null,null,null,{"$f":"IF(AND($N47<>\"\",$N47=$O47),$R47,\"\")","v":""},{"$f":"IF(AND($N47<>\"\",$N47=$O47),$S47,\"\")","v":""}]
[null,null,null,null,null,null,null,null,null,null,null,null,null,null,null,null,null,null,null,{"$f":"IF(AND($N48<>\"\",$N48=$O48),$R48,\"\")","v":""},{"$f":"IF(AND($N48<>\"\",$N48=$O48),$S48,\"\")","v":""}]
[null,null,null,null,null,null,null,null,null,null,null,null,null,null,null,null,null,null,null,{"$f":"IF(AND($N49<>\"\",$N49=$O49),$R49,\"\")","v":""},{"$f":"IF(AND($N49<>\"\",$N49=$O49),$S49,\"\")","v":""}]
[null,null,null,null,null,null,null,null,null,null,null,null,null,null,null,null,null,null,null,{"$f":"IF(AND($N50<>\"\",$N50=$O50),$R50,\"\")","v":""}," "]

{"sheet":"Database","index":6,"n_rows":94,"n_cols":9,"rows_kept":94,"cut":false,"hidden":true,"merged":[]}
[]
["Nominal Auxiliary Supply (Vx)",1,null,1,2,3,4,"A","Z"]
[1,"24-54 Vdc",7,null,{"$f":"HLOOKUP('Date Drivers'!$B$1,'Date Drivers'!$C$1:$X$40,26)","v":"IEC61850 + Courier via rear RS485 port"},{"$f":"HLOOKUP('Date Drivers'!$B$1,'Date Drivers'!$C$1:$X$40,26)","v":"IEC61850 + Courier via rear RS485 port"},{"$f":"HLOOKUP('Date Drivers'!$B$1,'Date Drivers'!$C$1:$X$40,26)","v":"IEC61850 + Courier via rear RS485 port"},{"$f":"HLOOKUP($A$90,'Date Drivers'!$C$1:$X$40,26)","v":"IEC61850 + Courier via rear RS485 port"},{"$f":"HLOOKUP($A$90,'Date Drivers'!$C$1:$X$40,26)","v":"IEC61850 + Courier via rear RS485 port"}]
[2,"48-125 Vdc (40-100 Vac)",8,null,{"$f":"HLOOKUP('Date Drivers'!$B$1,'Date Drivers'!$C$1:$X$40,27)","v":" "},{"$f":"HLOOKUP('Date Drivers'!$B$1,'Date Drivers'!$C$1:$X$40,27)","v":" "},{"$f":"HLOOKUP('Date Drivers'!$B$1,'Date Drivers'!$C$1:$X$40,27)","v":" "},{"$f":"HLOOKUP($A$90,'Date Drivers'!$C$1:$X$40,29)","v":"DNP3.0 Over Ethernet with Courier rear port K-Bus/RS485 protocol "},{"$f":"HLOOKUP($A$90,'Date Drivers'!$C$1:$X$40,29)","v":"DNP3.0 Over Ethernet with Courier rear port K-Bus/RS485 protocol "}]
[3,"110-250 Vdc (100-240 Vac)",9,null,{"$f":"HLOOKUP('Date Drivers'!$B$1,'Date Drivers'!$C$1:$X$40,28)","v":" "},{"$f":"HLOOKUP('Date Drivers'!$B$1,'Date Drivers'!$C$1:$X$40,28)","v":" "},{"$f":"HLOOKUP('Date Drivers'!$B$1,'Date Drivers'!$C$1:$X$40,28)","v":" "},{"$f":"HLOOKUP($A$90,'Date Drivers'!$C$1:$X$40,30)","v":" "},{"$f":"HLOOKUP($A$90,'Date Drivers'!$C$1:$X$40,30)","v":" "}]
["Current Rating (In) & Voltage Rating (Vn)",1,null,{"$f":"HLOOKUP('Date Drivers'!$B$1,'Date Drivers'!$C$1:$X$43,35)","v":6},{"$f":"HLOOKUP('Date Drivers'!$B$1,'Date Drivers'!$C$1:$X$43,35)","v":6},{"$f":"HLOOKUP('Date Drivers'!$B$1,'Date Drivers'!$C$1:$X$43,35)","v":6},{"$f":"HLOOKUP('Date Drivers'!$B$1,'Date Drivers'!$C$1:$X$43,35)","v":6},{"$f":"HLOOKUP($A$90,'Date Drivers'!$C$1:$X$40,35)","v":6},{"$f":"HLOOKUP($A$90,'Date Drivers'!$C$1:$X$40,35)","v":6}]
[1,{"$f":"HLOOKUP($B$31,$F$20:$H$70,37)","v":"In = 1 A/5 A : Vn = 100 - 120 Vac, 12CT & 3VT (80TE)"},{"$f":"HLOOKUP($B$31,$F$20:$H$70,39)","v":2},{"$f":"HLOOKUP('Date Drivers'!$B$1,'Date Drivers'!$C$1:$X$43,36)","v":8},{"$f":"HLOOKUP('Date Drivers'!$B$1,'Date Drivers'!$C$1:$X$43,36)","v":8},{"$f":"HLOOKUP('Date Drivers'!$B$1,'Date Drivers'!$C$1:$X$43,36)","v":8},{"$f":"HLOOKUP('Date Drivers'!$B$1,'Date Drivers'!$C$1:$X$43,36)","v":8},{"$f":"HLOOKUP($A$90,'Date Drivers'!$C$1:$X$40,38)","v":8},{"$f":"HLOOKUP($A$90,'Date Drivers'!$C$1:$X$40,38)","v":8}]
[2," ",1,{"$f":"HLOOKUP('Date Drivers'!$B$1,'Date Drivers'!$C$1:$X$43,37)","v":8},{"$f":"HLOOKUP('Date Drivers'!$B$1,'Date Drivers'!$C$1:$X$43,37)","v":8},{"$f":"HLOOKUP('Date Drivers'!$B$1,'Date Drivers'!$C$1:$X$43,37)","v":8},{"$f":"HLOOKUP('Date Drivers'!$B$1,'Date Drivers'!$C$1:$X$43,37)","v":8},{"$f":"HLOOKUP($A$90,'Date Drivers'!$C$1:$X$40,39)","v":8},{"$f":"HLOOKUP($A$90,'Date Drivers'!$C$1:$X$40,39)","v":8}]
["Hardware options",1]
[1,{"$f":"HLOOKUP($B$31,$F$20:$H$70,41)","v":"Ethernet (100Mbps) plus IRIG-B (De-modulated)"},{"$f":"HLOOKUP($B$31,$F$20:$H$70,48)","v":"B"}]
[2,{"$f":"HLOOKUP($B$31,$F$20:$H$70,42)","v":"Redundant Ethernet Self-Healing Ring + Un-modulated IRIG-B"},{"$f":"HLOOKUP($B$31,$F$20:$H$70,49)","v":"H"}]
[3,{"$f":"HLOOKUP($B$31,$F$20:$H$70,43)","v":"Redundant Ethernet Rapid Spanning Tree Protocol + Un-modulated IRIG-B"},{"$f":"HLOOKUP($B$31,$F$20:$H$70,50)","v":"K"}]
[4,{"$f":"HLOOKUP($B$31,$F$20:$H$70,44)","v":"Redundant Ethernet Dual Homing Star + Un-modulated IRIG-B"},{"$f":"HLOOKUP($B$31,$F$20:$H$70,51)","v":"M"}]
[5,{"$f":"HLOOKUP('Date Drivers'!$B$1,'Date Drivers'!$C$1:$G$133,123)","v":" "},{"$f":"HLOOKUP('Date Drivers'!$B$1,'Date Drivers'!$C$1:$G$148,138)","v":" "}]
[6,{"$f":"HLOOKUP('Date Drivers'!$B$1,'Date Drivers'!$C$1:$G$133,124)","v":" "},{"$f":"HLOOKUP('Date Drivers'!$B$1,'Date Drivers'!$C$1:$G$148,139)","v":" "}]
[7,{"$f":"HLOOKUP('Date Drivers'!$B$1,'Date Drivers'!$C$1:$G$133,125)","v":" "},{"$f":"HLOOKUP('Date Drivers'!$B$1,'Date Drivers'!$C$1:$G$148,140)","v":" "}]
[8,{"$f":"HLOOKUP('Date Drivers'!$B$1,'Date Drivers'!$C$1:$G$133,126)","v":" "},{"$f":"HLOOKUP('Date Drivers'!$B$1,'Date Drivers'!$C$1:$G$148,141)","v":" "}]
[9,{"$f":"HLOOKUP('Date Drivers'!$B$1,'Date Drivers'!$C$1:$G$133,127)","v":" "},{"$f":"HLOOKUP('Date Drivers'!$B$1,'Date Drivers'!$C$1:$G$148,142)","v":" "}]
[10,{"$f":"HLOOKUP('Date Drivers'!$B$1,'Date Drivers'!$C$1:$G$133,128)","v":" "},{"$f":"HLOOKUP('Date Drivers'!$B$1,'Date Drivers'!$C$1:$G$148,143)","v":" "}]
[11,{"$f":"HLOOKUP('Date Drivers'!$B$1,'Date Drivers'!$C$1:$G$133,129)","v":" "},{"$f":"HLOOKUP('Date Drivers'!$B$1,'Date Drivers'!$C$1:$G$148,143)","v":" "},null,null,1,2]
[null,null,null,null,null,{"$f":"HLOOKUP('Date Drivers'!$B$1,'Date Drivers'!$C$1:$G$118,48)","v":"8 Inputs & 8 Outputs + Backup Protection (60TE) 50/60 Hz - Withdrawn"},{"$f":"HLOOKUP('Date Drivers'!$B$1,'Date Drivers'!$C$1:$G$118,48)","v":"8 Inputs & 8 Outputs + Backup Protection (60TE) 50/60 Hz - Withdrawn"}]
[null,null,null,null,null,{"$f":"HLOOKUP('Date Drivers'!$B$1,'Date Drivers'!$C$1:$G$118,49)","v":"16 Inputs & 8 Outputs (80TE) 50/60 Hz "},{"$f":"HLOOKUP('Date Drivers'!$B$1,'Date Drivers'!$C$1:$G$118,49)","v":"16 Inputs & 8 Outputs (80TE) 50/60 Hz "}]
["Product options - 1",1,null,null,null,{"$f":"HLOOKUP('Date Drivers'!$B$1,'Date Drivers'!$C$1:$G$118,50)","v":"24 Inputs & 24 Outputs (80TE) 50/60 Hz"},{"$f":"HLOOKUP('Date Drivers'!$B$1,'Date Drivers'!$C$1:$G$118,50)","v":"24 Inputs & 24 Outputs (80TE) 50/60 Hz"}]
[1,{"$f":"HLOOKUP('Date Drivers'!$B$1,'Date Drivers'!$C$1:$G$47,44)","v":" "},{"$f":"HLOOKUP('Date Drivers'!$B$1,'Date Drivers'!$C$1:$G$47,46)","v":" "},null,null," "," "]
[2,{"$f":"HLOOKUP('Date Drivers'!$B$1,'Date Drivers'!$C$1:$G$47,45)","v":" "},{"$f":"HLOOKUP('Date Drivers'!$B$1,'Date Drivers'!$C$1:$G$47,47)","v":" "},null,null," "," "]
[3," ",null,null,null,{"$f":"HLOOKUP('Date Drivers'!$B$1,'Date Drivers'!$C$1:$G$118,53)","v":" "}," "]
[4,null,null,null,null,{"$f":"HLOOKUP('Date Drivers'!$B$1,'Date Drivers'!$C$1:$G$118,54)","v":" "},{"$f":"HLOOKUP('Date Drivers'!$B$1,'Date Drivers'!$C$1:$G$118,78)","v":" "}]
[null,null,null,null,null,{"$f":"HLOOKUP('Date Drivers'!$B$1,'Date Drivers'!$C$1:$G$118,55)","v":" "},{"$f":"HLOOKUP('Date Drivers'!$B$1,'Date Drivers'!$C$1:$G$118,79)","v":" "}]
[null,null,null,null,null,{"$f":"HLOOKUP('Date Drivers'!$B$1,'Date Drivers'!$C$1:$G$118,56)","v":" "},{"$f":"HLOOKUP('Date Drivers'!$B$1,'Date Drivers'!$C$1:$G$118,80)","v":" "}]
[null,null,null,null,null,{"$f":"HLOOKUP('Date Drivers'!$B$1,'Date Drivers'!$C$1:$G$118,57)","v":" "},{"$f":"HLOOKUP('Date Drivers'!$B$1,'Date Drivers'!$C$1:$G$118,81)","v":" "}]
["Product options - 2",2,null,null,null,{"$f":"HLOOKUP('Date Drivers'!$B$1,'Date Drivers'!$C$1:$G$118,58)","v":" "}]
[1,{"$f":"HLOOKUP($B$31,$F$20:$H$54,2)","v":"8 Inputs & 8 Outputs + Backup Protection (60TE) 50/60 Hz - Withdrawn"},{"$f":"HLOOKUP($B$31,$F$20:$H$54,14)","v":"A"},{"$f":"HLOOKUP($B$23,$F$20:$G$54,29)","v":"10P84701"},"Note: 50 or 60 Hz",{"$f":"HLOOKUP('Date Drivers'!$B$1,'Date Drivers'!$C$1:$G$118,59)","v":" "}]
[2,{"$f":"HLOOKUP($B$31,$F$20:$H$54,3)","v":"16 Inputs & 8 Outputs (80TE) 50/60 Hz "},{"$f":"HLOOKUP($B$31,$F$20:$H$54,15)","v":"B"},{"$f":"HLOOKUP($B$23,$F$20:$G$54,30)","v":"10P84702 Sheet 1"},"Note: 50 Hz Only",{"$f":"HLOOKUP('Date Drivers'!$B$1,'Date Drivers'!$C$1:$G$118,60)","v":"A"},{"$f":"HLOOKUP('Date Drivers'!$B$1,'Date Drivers'!$C$1:$G$118,60)","v":"A"}]
[3,{"$f":"HLOOKUP($B$31,$F$20:$H$54,4)","v":"24 Inputs & 24 Outputs (80TE) 50/60 Hz"},{"$f":"HLOOKUP($B$31,$F$20:$H$54,16)","v":"C"},{"$f":"HLOOKUP($B$23,$F$20:$G$54,31)","v":"10P84702 Sheet 2"},"Note: 50 Hz Only",{"$f":"HLOOKUP('Date Drivers'!$B$1,'Date Drivers'!$C$1:$G$118,61)","v":"B"},{"$f":"HLOOKUP('Date Drivers'!$B$1,'Date Drivers'!$C$1:$G$118,61)","v":"B"}]
[4,{"$f":"HLOOKUP($B$23,$F$20:$H$54,5)","v":" "},{"$f":"HLOOKUP($B$23,$F$20:$H$54,17)","v":" "},null,null,{"$f":"HLOOKUP('Date Drivers'!$B$1,'Date Drivers'!$C$1:$G$118,62)","v":"C"},{"$f":"HLOOKUP('Date Drivers'!$B$1,'Date Drivers'!$C$1:$G$118,62)","v":"C"}]
[5,{"$f":"HLOOKUP($B$23,$F$20:$H$54,6)","v":" "},{"$f":"HLOOKUP($B$23,$F$20:$H$54,18)","v":" "},null,null," "," "]
[6,{"$f":"HLOOKUP($B$23,$F$20:$H$54,7)","v":" "},{"$f":"HLOOKUP($B$23,$F$20:$H$54,19)","v":" "},null,null," "," "]
[7,{"$f":"HLOOKUP($B$23,$F$20:$H$54,8)","v":" "},{"$f":"HLOOKUP($B$23,$F$20:$H$54,20)","v":" "},null,null," "," "]
[8,{"$f":"HLOOKUP($B$23,$F$20:$H$54,9)","v":" "},{"$f":"HLOOKUP($B$23,$F$20:$H$54,21)","v":" "},null,null,{"$f":"HLOOKUP('Date Drivers'!$B$1,'Date Drivers'!$C$1:$G$118,66)","v":" "}," "]
[9,{"$f":"HLOOKUP($B$23,$F$20:$H$54,10)","v":" "},{"$f":"HLOOKUP($B$23,$F$20:$H$54,22)","v":" "},null,null,{"$f":"HLOOKUP('Date Drivers'!$B$1,'Date Drivers'!$C$1:$G$118,67)","v":" "}," "]
[10,{"$f":"HLOOKUP($B$23,$F$20:$H$54,11)","v":" "},{"$f":"HLOOKUP($B$23,$F$20:$H$54,23)","v":" "},null,null,{"$f":"HLOOKUP('Date Drivers'!$B$1,'Date Drivers'!$C$1:$G$118,68)","v":" "}," "]
[null,null,null,null,null,{"$f":"HLOOKUP('Date Drivers'!$B$1,'Date Drivers'!$C$1:$G$118,69)","v":" "}," "]
["Protocol options",1,null,null,null,{"$f":"HLOOKUP('Date Drivers'!$B$1,'Date Drivers'!$C$1:$G$118,70)","v":" "}]
[1,{"$f":"HLOOKUP(Configurator!$B$9,Database!$D$2:$I$8,2)","v":"IEC61850 + Courier via rear RS485 port"},{"$f":"HLOOKUP(Configurator!$B$9,Database!$D$2:$I$8,5)","v":6},null,null,"Flush/Panel mounting ","Flush/Panel mounting "]
[2,{"$f":"HLOOKUP(Configurator!$B$9,Database!$D$2:$I$8,3)","v":"DNP3.0 Over Ethernet with Courier rear port K-Bus/RS485 protocol "},{"$f":"HLOOKUP(Configurator!$B$9,Database!$D$2:$I$8,6)","v":8},null,null," ","Rack mounting"]
[3,{"$f":"HLOOKUP(Configurator!$B$9,Database!$D$2:$I$8,4)","v":" "},{"$f":"HLOOKUP(Configurator!$B$9,Database!$D$2:$I$8,7)","v":8},null,null,"M","M"]
[4," "," ",null,null,"M","N"]
[5," "," ",null,null,{"$f":"HLOOKUP('Date Drivers'!$B$1,'Date Drivers'!$C$1:$G$106,95)","v":"10P84701"},{"$f":"HLOOKUP('Date Drivers'!$B$1,'Date Drivers'!$C$1:$G$106,97)","v":"10P84702 Sheet 2"}]
[null,null,null,null,null,{"$f":"HLOOKUP('Date Drivers'!$B$1,'Date Drivers'!$C$1:$G$106,96)","v":"10P84702 Sheet 1"},{"$f":"HLOOKUP('Date Drivers'!$B$1,'Date Drivers'!$C$1:$G$106,98)","v":" "}]
["Mounting / Livery Change",1,null,null,null,{"$f":"HLOOKUP('Date Drivers'!$B$1,'Date Drivers'!$C$1:$G$106,97)","v":"10P84702 Sheet 2"},{"$f":"HLOOKUP('Date Drivers'!$B$1,'Date Drivers'!$C$1:$G$106,99)","v":" "}]
[1,{"$f":"HLOOKUP($B$31,$F$20:$G$87,59)","v":"Flush/Panel Mounting with Harsh Environment Coating"},{"$f":"HLOOKUP($B$31,$F$20:$G$87,63)","v":"M"}]
[2,{"$f":"HLOOKUP($B$31,$F$20:$G$87,60)","v":"19\" Rack Mounting with Harsh Environmental Coating "},{"$f":"HLOOKUP($B$31,$F$20:$G$87,64)","v":"N"}]
[3,{"$f":"HLOOKUP($B$31,$F$20:$G$87,61)","v":"Flush/panel mounting with harsh environment coating"},{"$f":"HLOOKUP($B$31,$F$20:$G$87,65)","v":"P"}]
[4,{"$f":"HLOOKUP($B$31,$F$20:$G$87,62)","v":"19\" Rack mounting with harsh environmental coating (80TE only)"},{"$f":"HLOOKUP($B$31,$F$20:$G$87,66)","v":"Q"}]
[null,null,null,null,null,"GN0040","GN0086"]
["Language",1,null,null,null,"In = 1 A/5 A : Vn = 100 - 120 Vac, 4 CT & 3 VT (60TE)","In = 1 A/5 A : Vn = 100 - 120 Vac, 12CT & 3VT (80TE)"]
[1,{"$f":"HLOOKUP('Date Drivers'!$B$1,'Date Drivers'!$C$1:$G$50,8)","v":"English, French, German, Spanish"},{"$f":"HLOOKUP('Date Drivers'!$B$1,'Date Drivers'!$C$1:$G$50,12)","v":"0"}]
[2,{"$f":"HLOOKUP('Date Drivers'!$B$1,'Date Drivers'!$C$1:$G$50,10)","v":"English, French, German, Russian"},{"$f":"HLOOKUP('Date Drivers'!$B$1,'Date Drivers'!$C$1:$G$50,14)","v":"5"},null,null,1,2]
[3,{"$f":"HLOOKUP('Date Drivers'!$B$1,'Date Drivers'!$C$1:$G$50,11)","v":"Chinese, English or French via HMI"},{"$f":"HLOOKUP('Date Drivers'!$B$1,'Date Drivers'!$C$1:$G$50,15)","v":"*"}]
[null,null,null,null,null,{"$f":"HLOOKUP('Date Drivers'!$B$1,'Date Drivers'!$C$1:$G$133,119)","v":"Ethernet (100Mbps) plus IRIG-B (De-modulated)"},{"$f":"HLOOKUP('Date Drivers'!$B$1,'Date Drivers'!$C$1:$G$133,119)","v":"Ethernet (100Mbps) plus IRIG-B (De-modulated)"}]
[null,null,null,null,null," ",{"$f":"HLOOKUP('Date Drivers'!$B$1,'Date Drivers'!$C$1:$G$133,120)","v":"Redundant Ethernet Self-Healing Ring + Un-modulated IRIG-B"}]
["Software Version",1,null,null,null," ",{"$f":"HLOOKUP('Date Drivers'!$B$1,'Date Drivers'!$C$1:$G$133,121)","v":"Redundant Ethernet Rapid Spanning Tree Protocol + Un-modulated IRIG-B"}]
[1,{"$f":"VLOOKUP($B$73,$A$74:$E$75,4)","v":"72 - Withdrawn"},{"$f":"VLOOKUP($B$73,$A$74:$G$75,6)","v":"**"},null,null," ",{"$f":"HLOOKUP('Date Drivers'!$B$1,'Date Drivers'!$C$1:$G$133,122)","v":"Redundant Ethernet Dual Homing Star + Un-modulated IRIG-B"}]
[2,{"$f":"VLOOKUP($B$73,$A$74:$E$75,5)","v":"71 - Withdrawn"},{"$f":"VLOOKUP($B$73,$A$74:$G$75,7)","v":71}]
[3,{"$f":"VLOOKUP($B$73,$A$74:$J$75,8)","v":"70 - Withdrawn"},{"$f":"VLOOKUP($B$73,$A$74:$J$75,9)","v":70}]
[]
["Customer Specific",1,null,null,null,{"$f":"HLOOKUP('Date Drivers'!$B$1,'Date Drivers'!$C$1:$G$148,134)","v":"B"},{"$f":"HLOOKUP('Date Drivers'!$B$1,'Date Drivers'!$C$1:$G$148,134)","v":"B"}]
[1,"Standard Version",0,null,null,{"$f":"F67","v":"B"},{"$f":"HLOOKUP('Date Drivers'!$B$1,'Date Drivers'!$C$1:$G$148,135)","v":"H"}]
[2,"Customer Specific","A",null,null,{"$f":"F68","v":"B"},{"$f":"HLOOKUP('Date Drivers'!$B$1,'Date Drivers'!$C$1:$G$148,136)","v":"K"}]
[{"$f":"$B$9","v":1},null,null,null,null,{"$f":"F69","v":"B"},{"$f":"HLOOKUP('Date Drivers'!$B$1,'Date Drivers'!$C$1:$G$148,137)","v":"M"}]
[]
[null,{"$f":"TODAY()","v":"2022-07-14"}]
["Design Suffix",1]
[1,"K","K",{"$f":"HLOOKUP($B$72,'Date Drivers'!$C$1:$G$94,72)","v":"72 - Withdrawn"},{"$f":"HLOOKUP($B$72,'Date Drivers'!$C$1:$G$94,73)","v":"71 - Withdrawn"},{"$f":"HLOOKUP($B$72,'Date Drivers'!$C$1:$G$94,84)","v":"**"},{"$f":"HLOOKUP($B$72,'Date Drivers'!$C$1:$G$94,85)","v":71},{"$f":"HLOOKUP($B$72,'Date Drivers'!$C$1:$G$94,74)","v":"70 - Withdrawn"},{"$f":"HLOOKUP($B$72,'Date Drivers'!$C$1:$G$94,86)","v":70}]
[2," ","K"]
[]
[]
[null,null,null,null,null,{"$f":"HLOOKUP('Date Drivers'!$B$1,'Date Drivers'!$C$1:$G$51,16)","v":"Flush/Panel Mounting with Harsh Environment Coating"},{"$f":"HLOOKUP('Date Drivers'!$B$1,'Date Drivers'!$C$1:$G$51,16)","v":"Flush/Panel Mounting with Harsh Environment Coating"}]
[null,null,null,null,null," ",{"$f":"HLOOKUP('Date Drivers'!$B$1,'Date Drivers'!$C$1:$G$51,17)","v":"19\" Rack Mounting with Harsh Environmental Coating "}]
[null,null,null,null,null," ",{"$f":"HLOOKUP('Date Drivers'!$B$1,'Date Drivers'!$C$1:$G$51,18)","v":"Flush/panel mounting with harsh environment coating"}]
[null,null,null,null,null," ",{"$f":"HLOOKUP('Date Drivers'!$B$1,'Date Drivers'!$C$1:$G$51,19)","v":"19\" Rack mounting with harsh environmental coating (80TE only)"}]
[null,null,null,null,null,{"$f":"HLOOKUP('Date Drivers'!$B$1,'Date Drivers'!$C$1:$G$51,20)","v":"M"},{"$f":"HLOOKUP('Date Drivers'!$B$1,'Date Drivers'!$C$1:$G$51,20)","v":"M"}]
[null,null,null,null,null,{"$f":"HLOOKUP('Date Drivers'!$B$1,'Date Drivers'!$C$1:$G$51,20)","v":"M"},{"$f":"HLOOKUP('Date Drivers'!$B$1,'Date Drivers'!$C$1:$G$51,21)","v":"N"}]
[null,null,null,null,null,"P",{"$f":"HLOOKUP('Date Drivers'!$B$1,'Date Drivers'!$C$1:$G$51,22)","v":"P"}]
[null,null,null,null,null,"P",{"$f":"HLOOKUP('Date Drivers'!$B$1,'Date Drivers'!$C$1:$G$51,23)","v":"Q"}]
[]
[]
[]
["KEY DATE"]
[{"$f":"VLOOKUP(Configurator!$B$20,Database!$A$91:$B$94,2,FALSE)","v":"2010-09-24"}]
["**","2010-09-24"]
[70,"2011-08-16"]
[71,"2012-05-31"]
[72,{"$f":"TODAY()","v":"2022-07-14"}]

{"sheet":"Date Drivers","index":7,"n_rows":162,"n_cols":7,"rows_kept":162,"cut":false,"hidden":true,"merged":[]}
["Key Date",{"$f":"Configurator!B21","v":"2010-09-24"},"2008-08-08","2010-09-24","2011-08-16","2012-05-31",{"$f":"TODAY()","v":"2022-07-14"}]
["Software Version",null,"Standard","Standard","Standard","Standard","Standard"]
[null,null,"60","60","60","60","60"]
["Customer Specific Options",null,"Standard Version","Standard Version","Standard Version","Standard Version","Standard Version"]
[null,null,"0","0","0","0","0"]
["Hardware Version",null,"K","K","K","K","K"]
[]
["Language",null,"English, French, German, Spanish","English, French, German, Spanish","English, French, German, Spanish","English, French, German, Spanish","English, French, German, Spanish"]
[null,null,"English, French, German, Italian (Not yet available!)","English, French, German, Italian (Not yet available!)","English, French, German, Italian (Not yet available!)","English, French, German, Italian (Not yet available!)","English, French, German, Italian (Not yet available!)"]
[null,null,"English, French, German, Russian","English, French, German, Russian","English, French, German, Russian","English, French, German, Russian","English, French, German, Russian"]
[null,null,"Chinese, English or French via HMI, with English or French only via Communications port","Chinese, English or French via HMI","Chinese, English or French via HMI, (not yet available)","Chinese, English or French via HMI, (not yet available)","Chinese, English or French via HMI, (not yet available)"]
[null,null,"0","0","0","0","0"]
[null,null,"*","*","*","*","*"]
[null,null,"5","5","5","5","5"]
[null,null,"C","*","*","*","*"]
["Mounting / Livery Change",null,"Flush / Panel mounting ","Flush/Panel Mounting with Harsh Environment Coating","Flush/Panel Mounting with Harsh Environment Coating","Flush/Panel Mounting with Harsh Environment Coating","Flush/Panel Mounting with Harsh Environment Coating"]
[null,null," ","19\" Rack Mounting with Harsh Environmental Coating ","19\" Rack Mounting with Harsh Environmental Coating ","19\" Rack Mounting with Harsh Environmental Coating ","19\" Rack Mounting with Harsh Environmental Coating "]
[null,null," ","Flush/panel mounting with harsh environment coating","Flush/panel mounting with harsh environment coating","Flush/panel mounting with harsh environment coating","Flush/panel mounting with harsh environment coating"]
[null,null," ","19\" Rack mounting with harsh environmental coating (80TE only)","19\" Rack mounting with harsh environmental coating (80TE only)","19\" Rack mounting with harsh environmental coating (80TE only)","19\" Rack mounting with harsh environmental coating (80TE only)"]
[null,null,"M","M","M","M","M"]
[null,null," ","N","N","N","N"]
[null,null," ","P","P","P","P"]
[null,null," ","Q","Q","Q","Q"]
["Mounting (Master Text)",null,"Flush/Panel Mounting with Harsh Environment Coating","Flush/Panel Mounting with Harsh Environment Coating","Flush/Panel Mounting with Harsh Environment Coating","Flush/Panel Mounting with Harsh Environment Coating","Flush/Panel Mounting with Harsh Environment Coating"]
[null,null," "," "," "," "," "]
["Protocol options",null,"K-Bus","IEC61850 + Courier via rear RS485 port","IEC61850 + Courier via rear RS485 port","IEC61850 + Courier via rear RS485 port","IEC61850 + Courier via rear RS485 port"]
[null,null,"IEC870"," "]
[null,null,"DNP3.0"," "]
[null,null,"IEC61850 + Courier via rear RS485 port","DNP3.0 Over Ethernet with Courier rear port K-Bus/RS485 protocol "," "," "," "]
[null,null,"IEC61850+IEC60870-5-103 via rear RS485 port"," "," "," "," "]
[null,null,"DNP3.0 Over Ethernet with Courier rear port K-Bus/RS485 protocol "," ","DNP3.0 Over Ethernet with Courier rear port K-Bus/RS485 protocol ","DNP3.0 Over Ethernet with Courier rear port K-Bus/RS485 protocol ","DNP3.0 Over Ethernet with Courier rear port K-Bus/RS485 protocol "]
[null,null,null," "]
[null,null,null," "]
[]
[null,null,1,6,6,6,6]
[null,null,3,8,6,6,6]
[null,null,4,8,6,6,6]
[null,null,6,8,6,6,6]
[null,null,7,8,6,6,6]
[null,null,8," "]
[null,null,null," "]
[null,null,null," "]
[]
["Product options - 1 (of 5)",null," "," "," "," "," "]
[null,null," "," "," "," "," "]
[null,null," "," "," "," "," "]
[null,null," "," "," "," "," "]
["Product options - B",null,"8 Inputs & 8 Outputs + Backup Protection (60TE)","8 Inputs & 8 Outputs + Backup Protection (60TE) 50/60 Hz - Withdrawn","8 Inputs & 8 Outputs + Backup Protection (60TE) 50/60 Hz - Withdrawn","8 Inputs & 8 Outputs + Backup Protection (60TE) 50/60 Hz - Withdrawn","8 Inputs & 8 Outputs + Backup Protection (60TE) 50/60 Hz - Withdrawn"]
[null,null,"16 Inputs & 8 Outputs (80TE)","16 Inputs & 8 Outputs (80TE) 50/60 Hz ","16 Inputs & 8 Outputs (80TE) 50/60 Hz ","16 Inputs & 8 Outputs (80TE) 50/60 Hz ","16 Inputs & 8 Outputs (80TE) 50/60 Hz "]
[null,null,"24 Inputs & 24 Outputs (80TE)","24 Inputs & 24 Outputs (80TE) 50/60 Hz","24 Inputs & 24 Outputs (80TE) 50/60 Hz","24 Inputs & 24 Outputs (80TE) 50/60 Hz","24 Inputs & 24 Outputs (80TE) 50/60 Hz"]
[null,null," "," "," "," "," "]
[null,null," "," "," "," "," "]
[null,null," "," "," "," "," "]
[null,null," "," "," "," "," "]
[null,null," "," "," "," "," "]
[null,null," "," "," "," "," "]
[null,null," "," "," "," "," "]
[null,null," "," "," "," "," "]
[null,null," "," "," "," "," "]
[null,null,"A","A","A","A","A"]
[null,null,"B","B","B","B","B"]
[null,null,"C","C","C","C","C"]
[null,null," "," "," "," "," "]
[null,null," "," "," "," "," "]
[null,null," "," "," "," "," "]
[null,null," "," "," "," "," "]
[null,null," "," "," "," "," "]
[null,null," "," "," "," "," "]
[null,null," "," "," "," "," "]
[null,null," "," "," "," "," "]
[null,null," "," "," "," "," "]
["Software Version",null,"60",{"$f":"IF(Database!$B$31=1,60,70)","v":70},{"$f":"IF(Database!$B$31=1,60,70)","v":70},{"$f":"IF(Database!$B$31=1,60,71)","v":71},{"$f":"IF(Database!$B$31=1,\"60 - Withdrawn\",\"72 - Withdrawn\")","v":"72 - Withdrawn"}]
[null,null,null,null,null,{"$f":"IF(Database!$B$31=1,60,70)","v":70},{"$f":"IF(Database!$B$31=1,\"\",\"71 - Withdrawn\")","v":"71 - Withdrawn"}]
[null,null,null,null,null,null,{"$f":"IF(Database!$B$31=1,\"\",\"70 - Withdrawn\")","v":"70 - Withdrawn"}]
[]
[]
[]
[null,null," "," "," "," "," "]
[null,null," "," "," "," "," "]
[null,null," "," "," "," "," "]
[null,null," "," "," "," "," "]
[]
[]
[null,null,"60",{"$f":"IF(Database!$B$31=1,60,70)","v":70},{"$f":"IF(Database!$B$31=1,60,70)","v":70},{"$f":"IF(Database!$B$31=1,60,71)","v":71},"**"]
[null,null,"60",{"$f":"IF(Database!$B$31=1,60,70)","v":70},{"$f":"IF(Database!$B$31=1,60,70)","v":70},{"$f":"IF(Database!$B$31=1,60,70)","v":70},{"$f":"IF(Database!$B$31=1,\"**\",71)","v":71}]
[null,null,null,null,null,null,{"$f":"IF(Database!$B$31=1,\"**\",70)","v":70}]
[]
[]
[]
[]
[]
[]
[]
[]
["Customer Diagram",null,"10P84701","10P84701","10P84701","10P84701","10P84701"]
[null,null," ","10P84702 Sheet 1","10P84702 Sheet 1","10P84702 Sheet 1","10P84702 Sheet 1"]
[null,null," ","10P84702 Sheet 2","10P84702 Sheet 2","10P84702 Sheet 2","10P84702 Sheet 2"]
[null,null," "," "," "," "," "]
[null,null," "," "," "," "," "]
[]
[]
[]
[]
[]
[]
[]
[]
[]
[]
[]
[]
[]
[]
[]
[]
[]
[]
[]
["Hardware options",null,"Ethernet (100Mbit/s) plus IRIG-B (De-modulated) ","Ethernet (100Mbps) plus IRIG-B (De-modulated)","Ethernet (100Mbps) plus IRIG-B (De-modulated)","Ethernet (100Mbps) plus IRIG-B (De-modulated)","Ethernet (100Mbps) plus IRIG-B (De-modulated)"]
[null,null," ","Redundant Ethernet Self-Healing Ring + Un-modulated IRIG-B","Redundant Ethernet Self-Healing Ring + Un-modulated IRIG-B","Redundant Ethernet Self-Healing Ring + Un-modulated IRIG-B","Redundant Ethernet Self-Healing Ring + Un-modulated IRIG-B"]
[null,null," ","Redundant Ethernet Rapid Spanning Tree Protocol + Un-modulated IRIG-B","Redundant Ethernet Rapid Spanning Tree Protocol + Un-modulated IRIG-B","Redundant Ethernet Rapid Spanning Tree Protocol + Un-modulated IRIG-B","Redundant Ethernet Rapid Spanning Tree Protocol + Un-modulated IRIG-B"]
[null,null," ","Redundant Ethernet Dual Homing Star + Un-modulated IRIG-B","Redundant Ethernet Dual Homing Star + Un-modulated IRIG-B","Redundant Ethernet Dual Homing Star + Un-modulated IRIG-B","Redundant Ethernet Dual Homing Star + Un-modulated IRIG-B"]
[null,null," "," "]
[null,null," "," "]
[null,null," "," "]
[null,null," "," "]
[null,null,""," "]
[null,null," "," "]
[null,null," "," "," "," "," "]
[null,null," "," "," "," "," "]
[null,null," "," "," "," "," "]
[null,null," "," "," "," "," "]
[null,null," "," "," "," "," "]
[null,null,"B","B","B","B","B"]
[null,null," ","H","H","H","H"]
[null,null," ","K","K","K","K"]
[null,null," ","M","M","M","M"]
[null,null," "," "," "," "," "]
[null,null," "," "," "," "," "]
[null,null," "," "," "," "," "]
[null,null," "," "," "," "," "]
[null,null," "," "," "," "," "]
[null,null," "," "," "," "," "]
[null,null," "]
[]
[]
[]
[null,null," "," "," "," "," "]
["Software Version",null,"70","70","70","70","70"]
[]
[]
[]
[]
[]
[null,null," "," "," "," "," "]
[null,null," "," "," "," "," "]
[null,null," "," "," "," "," "]
[null,null," "," "," "," "," "]
[]
[]
[null,null,"70","70","70","70","70"]
[null,null,"70","70","70","70","70"]